Cogmind - Beta 11 X8 @@@ ROGUE MODE // 2021.11.03 @ 12:36:03 Player: Runia Result: Self-destructed Performance ------------- Evolutions (2) 1000 Regions Visited (5) 1000 Robots Destroyed (40) 200 Value Destroyed (1039) 1039 Prototype IDs (27) 540 Alien Tech Used (0) 0 Bonus (425) 425 TOTAL SCORE: 4204 Bonus ------- Follower Combat Kills 154 Aligned with FarCom 300 Friendly Fire -29 Cogmind --------- Core Integrity 469/550 Matter 486/500 Energy 150/150 System Corruption 0% Temperature Cool (0) Movement Treading (560) Ox5 Location -8/Materials Parts ------- > --- POWER (1) -------- Light Angular Momentum Engine > --- PROPULSION (2) --- Light Treads Wheel > --- UTILITY (6) ------ Advanced Heat Sink Huge Storage Unit High-capacity Matter Pod Trap Scanner Light Armor Plating > --- WEAPON (2) ------- Light Assault Rifle Light Assault Rifle > --- INVENTORY (25) --- Light Ion Engine Light Treads Wheel Experimental Sensor Array Army-in-a-Box (30/30) Bore Cannon Grenade Launcher Grenade Launcher Grenade Launcher Grenade Launcher Signal Generator Peak State ------------ > --- POWER ------------ Light Angular Momentum Engine > --- PROPULSION ------- Light Treads Compact Wheel > --- UTILITY ---------- Advanced Heat Sink Huge Storage Unit High-capacity Matter Pod Trap Scanner Improved Terrain Scanner Light Armor Plating > --- WEAPON ----------- Particle Gun Precision Beam Rifle > --- INVENTORY -------- Ion Engine Light Ion Engine Light Treads Light Treads Experimental Sensor Array Army-in-a-Box Light Assault Rifle Light Assault Rifle Light Assault Rifle Light Assault Rifle Bore Cannon Grenade Launcher Grenade Launcher Grenade Launcher Grenade Launcher Signal Generator [Rating: 35] Favorites ----------- Power Ion Engine Engine Ion Engine Propulsion Light Treads Treads Light Treads Leg Aluminum Leg Wheel Compact Wheel Utility Huge Storage Unit Device Improved Terrain Scanner Storage Huge Storage Unit Protection Light Armor Plating Weapon Particle Gun Energy Gun Particle Gun Ballistic Gun Light Assault Rifle Launcher Grenade Launcher Build | -11 -10 -10 -10 -9 -8 ------- Run | Scr Mat Min Exi Min Mat Slots Evolved 4 | . . . . . 4 Power . | . . . . . . Propulsion . | . . . . . . Utility 4 | . . . . . 4 Weapon . | . . . . . . Parts Attached 37 | . 13 5 1 2 16 Power 3 | . 2 . . . 1 Engine 3 | . 2 . . . 1 Core . | . . . . . . Reactor . | . . . . . . Propulsion 10 | . 5 2 . . 3 Treads 7 | . 5 . . . 2 Leg . | . . . . . . Wheel 3 | . . 2 . . 1 Hover . | . . . . . . Flight . | . . . . . . Utility 11 | . 1 1 1 1 7 Device 5 | . . 1 . . 4 Storage 3 | . 1 . 1 . 1 Processor . | . . . . . . Hackware . | . . . . . . Protection 3 | . . . . 1 2 Artifact . | . . . . . . Weapon 13 | . 5 2 . 1 5 Energy Gun 2 | . 1 . . . 1 Energy Cannon . | . . . . . . Ballistic Gun 8 | . 3 1 . . 4 Ballistic Cannon . | . . . . . . Launcher 3 | . 1 1 . 1 . Special Weapon . | . . . . . . Impact Weapon . | . . . . . . Slashing Weapon . | . . . . . . Piercing Weapon . | . . . . . . Special Melee Weapon . | . . . . . . Unidentified Prototypes 2 | . . . . . 2 Parts Lost 11 | . 2 1 . . 8 Power . | . . . . . . Propulsion 2 | . . 1 . . 1 Utility 3 | . . . . . 3 Weapon 6 | . 2 . . . 4 Highest Loss Streak 4 | . 1 1 . . 4 Average Slot Usage (%) 92 | . 84 88 100 100 89 Engine 13 | . 14 14 14 14 9 Treads 17 | . 27 18 14 14 10 Wheel 7 | . . 2 14 14 7 Device 6 | . . 10 14 1 18 Storage 14 | . 14 14 14 14 18 Protection 4 | . . . . 12 7 Energy Gun 11 | . 7 14 14 14 11 Ballistic Gun 10 | . 20 5 14 5 4 Launcher 4 | . . 8 . 8 . Naked Turns . | . . . . . . Heaviest Build 105 | 13 29 32 90 94 105 Greatest Support 40 | 20 40 40 16 16 40 Greatest Overweight (x) 10 | . . 3 5 5 10 Average Overweight (x) 2 | . . . 3 5 6 Largest Inventory Capacity 25 | 8 15 15 25 25 25 Average Capacity 20 | 8 14 15 21 25 25 Most Carried 21 | 5 11 13 18 20 21 Average Carried 13 | 5 6 11 15 19 18 Final Capacity 25 | 8 15 15 25 25 25 Final Carried 20 | 4 10 13 17 20 16 Class Distribution -------------------- 59% | Scavenger-Mutant 40% | Mutant Dominant Class ---------------- Mutant | -10/Materials Mutant | -10/Mines Scavenger-Mutant | -10/Exiles Scavenger-Mutant | -9/Mines Scavenger-Mutant | -8/Materials Resources | -11 -10 -10 -10 -9 -8 ----------- Run | Scr Mat Min Exi Min Mat Matter Collected 1081 | 200 340 287 20 70 164 Remotely . | . . . . . . Salvage Created 1350 | . 714 15 . 36 585 Parts 88 | . 43 1 . 6 38 Haulers Intercepted 3 | . 2 . . . 1 Recyclers Shooed . | . . . . . . Parts Field Recycled . | . . . . . . Retrieved Matter . | . . . . . . Parts Self-Destructed . | . . . . . . Prevented . | . . . . . . Kills | -11 -10 -10 -10 -9 -8 ------- Run | Scr Mat Min Exi Min Mat Combat Hostiles Destroyed 32 | . 15 3 . 4 10 Guns 23 | . 13 . . . 10 AOE 9 | . 2 3 . 4 . Classes Destroyed 11 | . 6 1 . . 4 Worker 3 | . 1 1 . 1 . Builder 2 | . . . . . 2 Hauler 3 | . 2 . . . 1 Recycler 1 | . 1 . . . . Operator 1 | . . . . . 1 Watcher 1 | . 1 . . . . Swarmer 7 | . 3 . . 4 . Grunt 19 | . 12 . . . 7 Brawler 1 | . . . . . 1 Sentry 2 | . . . . . 2 Assembled 3 | . . 3 . . . Best Kill Streak 6 | . 4 2 . 4 6 Combat Bots Only 4 | . 3 2 . 4 4 Max Kills in Single Turn 2 | . 2 1 . 2 1 Gunslinging . | . . . . . . Exploded 2 | . 2 1 . 2 . Melee . | . . . . . . Uniques/NPCs Destroyed . | . . . . . . Combat | -11 -10 -10 -10 -9 -8 -------- Run | Scr Mat Min Exi Min Mat Damage Taken 1818 | . 755 102 . 38 923 Core 253 | . 161 11 . . 81 Absorbed by Shields . | . . . . . . Core Remaining (%) 65 | 100 . . . 31 . Volleys Fired 154 | . 87 10 4 6 47 Largest 2 | . 2 2 1 1 2 Hottest 126 | . 85 85 65 65 126 Shots Fired 282 | . 171 14 4 6 87 Gun 269 | . 170 8 4 1 86 Cannon . | . . . . . . Launcher 13 | . 1 6 . 5 1 Special . | . . . . . . Kinetic 201 | . 157 4 . . 40 Thermal 68 | . 13 4 4 1 46 Explosive 13 | . 1 6 . 5 1 Electromagnetic . | . . . . . . Robot Hit Streak 13 | . 13 6 . 8 11 Robot Miss Streak 3 | . 3 2 . 1 3 Penetration Max . | . . . . . . Secondary Targets 1 | . 1 . . . . Max Gunslinging Chain 1 | . 1 . . . . Shots Hit Robots 188 | . 117 7 . 5 59 Core Hits 90 | . 43 8 . 6 33 Critical Kills . | . . . . . . Critical Parts Destroyed . | . . . . . . Critical Strikes 1 | . . . . . 1 Burn 1 | . . . . . 1 Melee Attacks . | . . . . . . Impact . | . . . . . . Slashing . | . . . . . . Piercing . | . . . . . . Sneak Attacks . | . . . . . . Combat Hostiles . | . . . . . . Follow-up Attacks . | . . . . . . Damage Inflicted 2610 | . 1212 252 . 292 854 Guns 1964 | . 1083 64 . 14 803 Cannons . | . . . . . . Explosions 640 | . 129 188 . 278 45 Melee . | . . . . . . Ramming 6 | . . . . . 6 Kinetic 1164 | . 924 22 . . 218 Thermal 800 | . 159 42 . 14 585 Explosive 640 | . 129 188 . 278 45 Electromagnetic . | . . . . . . Impact . | . . . . . . Slashing . | . . . . . . Piercing . | . . . . . . Highest Corruption . | . . . . . . Average Corruption . | . . . . . . Corruption Purged . | . . . . . . Overload Shots . | . . . . . . Overflow Damage 8 | . . . . 8 . Projectiles . | . . . . . . Explosions 8 | . . . . 8 . Melee . | . . . . . . Knockbacks . | . . . . . . Impact . | . . . . . . Kinetic . | . . . . . . Secondary . | . . . . . . Self-Inflicted Damage 85 | . . 57 . 21 7 Shots 4 | . . 2 . 1 1 Rammed 1 | . . . . . 1 Targets Rammed 1 | . . . . . 1 Kicked . | . . . . . . Crushed . | . . . . . . Highest Temperature 321 | . 208 48 48 30 321 Average Temperature 50 | . 33 24 26 19 81 Received Heat Transfer 819 | . 387 . . . 432 Effects 1 | . . . . . 1 Energy Bleed 1 | . . . . . 1 Siege Activations . | . . . . . . Robots Corrupted . | . . . . . . Combat Hostiles . | . . . . . . Parts Fried . | . . . . . . Impact Corruptions . | . . . . . . Robots Melted . | . . . . . . Combat Hostiles . | . . . . . . Parts Melted 1 | . 1 . . . . Heat Transferred 1887 | . 370 111 . 37 1369 Parts Sabotaged . | . . . . . . Parts Stolen . | . . . . . . Parts Stripped . | . . . . . . Power Chain Reactions . | . . . . . . Missiles Intercepted . | . . . . . . Alert | -11 -10 -10 -10 -9 -8 ------- Run | Scr Mat Min Exi Min Mat Peak Influence 281 | . 281 26 . 163 270 Initial . | . . . . . . Average 85 | . 134 4 . 77 106 Maximum Alert Level 1 | . 1 . . . 1 Low Security (%) 87 | 100 71 100 . 100 79 Level 1 12 | . 28 . . . 20 Level 2 . | . . . . . . Level 3 . | . . . . . . Level 4 . | . . . . . . Level 5 . | . . . . . . High Security . | . . . . . . Max Security . | . . . . . . Squads Dispatched 9 | . 3 1 . . 5 Investigation 3 | . 2 . . . 1 Extermination . | . . . . . . Reinforcement 4 | . 1 . . . 3 Assault 1 | . . 1 . . . Garrison 1 | . . . . . 1 Intercept . | . . . . . . Construction Impeded 1 | . . . . . 1 Haulers Reinforced . | . . . . . . Active Scanning Responses . | . . . . . . Cargo Convoy Interrupts . | . . . . . . Stealth | -11 -10 -10 -10 -9 -8 --------- Run | Scr Mat Min Exi Min Mat Distress Signals 5 | . 2 . . . 3 Communications Jammed . | . . . . . . Distress Signals . | . . . . . . Times Spotted 66 | . 26 6 1 7 26 Peak Tracking Total 9 | . 3 2 9 7 9 Tactical Retreats 2 | . . . . . 2 Traps | -11 -10 -10 -10 -9 -8 ------- Run | Scr Mat Min Exi Min Mat Traps Triggered 3 | . 2 . . . 1 Indirectly . | . . . . . . Trap Hack Attempts . | . . . . . . Triggered . | . . . . . . Disarmed . | . . . . . . Reprogrammed . | . . . . . . Reused . | . . . . . . Traps Extracted . | . . . . . . Installed . | . . . . . . Triggered . | . . . . . . Machines | -11 -10 -10 -10 -9 -8 ---------- Run | Scr Mat Min Exi Min Mat Machines Disabled 4 | . 1 . 2 . 1 Max in Single Turn 1 | . 1 . 1 . 1 Machines Sabotaged . | . . . . . . Garrisons Compromised . | . . . . . . Overloaded Fab Kills . | . . . . . . Hacking | -11 -10 -10 -10 -9 -8 --------- Run | Scr Mat Min Exi Min Mat Machines Accessed 11 | . 7 1 2 . 1 Terminals 9 | . 7 1 . . 1 Fabricators . | . . . . . . Repair Stations . | . . . . . . Recycling Units . | . . . . . . Scanalyzers . | . . . . . . Garrison Access . | . . . . . . Total Hacks 33 | . 24 3 2 . 4 Successful 18 | . 13 1 2 . 2 Failed 15 | . 11 2 . . 2 Catastrophic 3 | . 2 . . . 1 Database Lockouts . | . . . . . . Manual 15 | . 11 . 1 . 3 Terminals 31 | . 24 3 . . 4 Fabricators . | . . . . . . Repair Stations . | . . . . . . Recycling Units . | . . . . . . Scanalyzers . | . . . . . . Garrison Access . | . . . . . . Terminal Hacks 17 | . 12 1 2 . 2 Record 1 | . . . 1 . . Robot Schematic 1 | . 1 . . . . Robot Analysis 2 | . 2 . . . . Prototype ID Bank 1 | . 1 . . . . Terminal Index 2 | . 1 . . . 1 Alert Level 2 | . 2 . . . . Unreport Threat 1 | . 1 . . . . Locate Traps 3 | . 3 . . . . Zone Layout 3 | . 1 1 . . 1 EX-Prototype ID Bank 1 | . . . 1 . . Fabricator Hacks . | . . . . . . Repair Station Hacks . | . . . . . . Recycling Unit Hacks . | . . . . . . Scanalyzer . | . . . . . . Garrison Access Hacks . | . . . . . . Unauthorized Hacks 1 | . 1 . . . . Terminals 1 | . 1 . . . . Operators 1 | . 1 . . . . Fabricators . | . . . . . . Repair Stations . | . . . . . . Recycling Units . | . . . . . . Scanalyzers . | . . . . . . Garrison Access . | . . . . . . Data Cores Recovered 1 | . . . . . 1 Used . | . . . . . . Hacking Detections 8 | . 7 . . . 1 Full Trace Events . | . . . . . . Feedback Events . | . . . . . . Feedback Blocked . | . . . . . . Robot Schematics Acquired 1 | . 1 . . . . Robots Built . | . . . . . . Authchips . | . . . . . . Time . | . . . . . . Total Robot Build Rating . | . . . . . . Part Schematics Acquired . | . . . . . . Parts Built . | . . . . . . Authchips . | . . . . . . Time . | . . . . . . Total Part Build Rating . | . . . . . . Parts Repaired . | . . . . . . Time . | . . . . . . Parts Recycled . | . . . . . . Recycled Matter . | . . . . . . Retrieved Matter . | . . . . . . Retrieved Components . | . . . . . . Parts Scanalyzed . | . . . . . . Part Schematics Acquired . | . . . . . . Parts Damaged . | . . . . . . Bothacking | -11 -10 -10 -10 -9 -8 ------------ Run | Scr Mat Min Exi Min Mat Used RIF Installer . | . . . . . . Robots Hacked . | . . . . . . Non-combat . | . . . . . . Combat . | . . . . . . Robot Hacks Applied . | . . . . . . Relay Couplers Released . | . . . . . . Robots Rewired . | . . . . . . Allies Hacked . | . . . . . . Hacks Repelled . | . . . . . . Allies | -11 -10 -10 -10 -9 -8 -------- Run | Scr Mat Min Exi Min Mat Total Allies 4 | . . 1 . 3 . Largest Group 4 | . . 1 1 4 1 Highest-Rated Group 71 | . . 31 31 71 16 Highest-Rated Ally 31 | . . 31 31 31 16 Total Orders . | . . . . . . Ally Attacks 59 | . . 4 3 37 15 Total Damage 555 | . . 62 42 324 127 Kills 13 | . . 2 1 9 1 Allies Corrupted . | . . . . . . Allies Melted . | . . . . . . Intel | -11 -10 -10 -10 -9 -8 ------- Run | Scr Mat Min Exi Min Mat Robot Analysis Total 2 | . 2 . . . . Derelict Logs Recovered 3 | . . . . 3 . Drone Launches . | . . . . . . Drone Recoveries . | . . . . . . Exploration | -11 -10 -10 -10 -9 -8 ------------- Run | Scr Mat Min Exi Min Mat Turns Passed 3529 | 1 934 584 482 1065 463 Spaces Moved 1776 | 1 424 285 323 595 148 Core . | . . . . . . Treads 621 | . 407 206 . . 8 Legs 18 | 1 17 . . . . Wheels 1137 | . . 79 323 595 140 Hover . | . . . . . . Flight . | . . . . . . Fastest Speed 110 | 120 120 110 115 175 190 Average Speed 168 | 120 158 178 145 175 203 Slowest Speed 320 | 120 160 240 175 175 320 Overloaded Moves . | . . . . . . Propulsion Burnouts . | . . . . . . Robots Hopped . | . . . . . . Cave-ins Triggered . | . . . . . . Exploration Rate (%) 54 | 3 71 66 69 97 21 Regions Visited 5 Branch Regions 3 Pre-discovered Areas 2 | . . . 1 1 . Known Exits Taken . | . . . . . . Unknown Exits Taken 5 | 1 1 1 1 1 . Scrap Searched 2 | . . . . 2 . Spaces Dug . | . . . . . . Terrain Destroyed 83 | . 5 41 . 36 1 Melee . | . . . . . . Projectile . | . . . . . . AOE 83 | . 5 41 . 36 1 Terrain Rammed . | . . . . . . Walls Destroyed . | . . . . . . Machines Disabled . | . . . . . . Actions | -11 -10 -10 -10 -9 -8 --------- Run | Scr Mat Min Exi Min Mat Total 2066 | 2 546 345 332 613 228 Wait 62 | . 3 42 . 8 9 Move 1771 | . 423 284 322 594 148 Hop . | . . . . . . Pick Up 20 | . 11 3 2 2 2 Fast Attach 12 | . 3 2 . 1 6 Attach 10 | . 2 . . . 8 Detach 3 | . . . . 1 2 Swap 15 | . 8 3 1 1 2 Drop 18 | 2 9 1 3 . 3 Fire 154 | . 87 10 4 6 47 Melee . | . . . . . . Ram 1 | . . . . . 1 Kick . | . . . . . . Crush . | . . . . . . Escape Stasis . | . . . . . . Rewire . | . . . . . . Trap . | . . . . . . Miscellaneous . | . . . . . . Route ------- -11/Scrapyard -10/Materials (discovered 3 exits: [*Mat x2] / *Min) -10/Mines -10/Exiles -9/Mines (discovered 2 exits: *Mat x2) -8/Materials History --------- Turn | Location | Event 2 | -11/Scrapyard | Discovered new exit (range 0) 2 | -11/Scrapyard | Entered Materials 308 | -10/Materials | Build established: Mutant 513 | -10/Materials | Core integrity fell below 50% 639 | -10/Materials | Discovered new exit (range 9) 783 | -10/Materials | Discovered new exit (range 13) 920 | -10/Materials | Discovered new exit (range 9) 936 | -10/Materials | Entered Mines 976 | -10/Mines | Assembled infested the area 1000 | -10/Mines | Found a hidden stash of uninstalled traps 1243 | -10/Mines | Met a Derelict testing a Signal Generator 1261 | -10/Mines | Found Signal Generator 1479 | -10/Mines | A weapon hastily lodged in a ceiling crevice suddenly fell to the ground 1507 | -10/Mines | Discovered new exit (range 11) 1515 | -10/Mines | Deemed a non-threat by the Exiles lab entrance 1520 | -10/Mines | Entered Exiles 1520 | -10/Exiles | Accompanied by 1 ally 1547 | -10/Exiles | Met 8R-AWN 1568 | -10/Exiles | Met EX-HEX 1612 | -10/Exiles | Met EX-DEC 1623 | -10/Exiles | Learned location of Zion (-6) 1646 | -10/Exiles | Met EX-BIN 1662 | -10/Exiles | Aligned with FarCom system 1663 | -10/Exiles | Given EX-Vault access code 1692 | -10/Exiles | Opened EX-Vault 1708 | -10/Exiles | Found Army-in-a-Box 1725 | -10/Exiles | Build established: Scavenger-Mutant 1742 | -10/Exiles | Warned to stay clear of 0b10 Research branches 1966 | -10/Exiles | Attacked by the Exiles 1986 | -10/Exiles | Discovered new exit (range 10) 2002 | -10/Exiles | Left Exiles lab with Army-in-a-Box 2002 | -10/Exiles | Entered Mines 2002 | -9/Mines | Accompanied by 1 ally 2012 | -9/Mines | Met a Derelict bent on vengeance 2020 | -9/Mines | Assisted by bots powering up and referring to "LRC-V3" 2117 | -9/Mines | Discovered new exit (range 10) 2231 | -9/Mines | Learned 2 Materials zone layouts 2233 | -9/Mines | Learned 2 Materials zone layouts 2319 | -9/Mines | Discovered new exit (range 9) 2378 | -9/Mines | Found a damaged Exp. Sensor Array with a note attached 2382 | -9/Mines | Found Prototype Device 3067 | -9/Mines | Entered Materials 3067 | -8/Materials | Accompanied by 1 ally 3067 | -8/Materials | Evolved 4 slots: Utility x4 3070 | -8/Materials | Identified Exp. Sensor Array 3399 | -8/Materials | Lost 4 parts (1n2u1w) 3452 | -8/Materials | Garrison activated, responded to threat 3491 | -8/Materials | Lost 4 parts (1u3w) 3530 | -8/Materials | Self-destructed Last Messages --------------- 03452_ ALERT: Activating Garrison Access M001. 03454_ K-01 Serf collects debris. 03456_ Lgt. Assault Rifle destroyed. 03457_ K-01 Serf collects debris. 03460_ Imp. Terrain Scanner destroyed. 03460_ G-47 Trooper destroyed. 03460_ K-01 Serf collects debris. 03463_ Acquired 28 matter. 03470_ K-01 Serf collects debris. 03480_ Acquired 2 matter. 03482_ K-01 Serf collects debris. 03483_ Acquired 2 matter. 03485_ K-01 Serf collects debris. 03486_ Acquired 2 matter. 03490_ B-36 Bruiser destroyed. 03491_ Acquired 2 matter. 03499_ Acquired Lgt. Armor Plating. 03519_ Triggered Alarm Trap. 03519_ An alarm sounds. 03519_ ALERT: Alarm triggered, dispatching investigation squad. Map ----- +----------------------------------------------------+ | ????????????????????????????????????????????? | | ????????????????????????????????????????????? | | ????????????????????????????????????????????? | | ????????????????????????????????????????????? | | ????????????????????????????????????????????? | | ????????????????????????????????????????????? | | ????????????????????????????????????????????? | | ????????????????????????????????????????????? | | ????????????????????????????????????????????? | | ????????????????????????????????????????????? | | ????????????????????????????????????????????? | | ????????????????????????????????????????????? | | ????????????????????????????????????????????? | | ????????????????????????????????????????????? | | ????????????????????????????????????????????? | | ????????????????????????????????????????????? | | ????????????????#?????????#+????????????????? | | ?????????????????????????? ????????????????? | | ?????????????????#?##?##### ????????????????? | | ???????#???????????# # #???????????????? | | ???????????????????# "" # #???????????????? | | ????????#??????????# G" # #???????????????? | | ???????#?????????? # "" # ###?????????????? | | ?????????? ?+????? # # +? ??????????? | | ????????????# ??? # """g# ####+###??????? | | ???????##??????????# g"""@# ## #? ????? | | ????????# ? ????? ?# """l# !##+#???? | | ???????###+######### s T #???# | | ???????? ] ### """ # #??????? | | ???? ? ? #?# """ ###### *%= # ?????# | | ?? ? ???? """ ! #?# """ #??#####!###???? ?? | | ????????""""""|[=### #???#?##%#????????? | | ???????"""" " !!*#################%#????????? | | ???# =%%%/% %%%! ==%!= [=##?????#?# | | ???##+################*! %[%= =### ## | | ??????????????# #[ *!*[ =% ! #? | | ??????????????#""" + ! =%* #? | | ??????#?????#?#""" # [ #? | | ?#????????????#"""! # ############# #? | | ????? #?? ????# *!!* # #?#??????##?### ###? | | ???????????#?## ! !* # #?#????????#??# #??? | | ????? ????????##+##### #?#??????#?#??# #??? | | ??????? ???????#! #############?# ##?? | | ??????????????## # # """ #?# #??? | | ???????????????# # # "Y" ### ###? | | ????? ?????#???# # # # #? | | ?????????#????## # # # ## | | ?? ???????????## + # # #? | | ????????#?????## # # # #? | | ??????#????????# # ####+### #? | +----------------------------------------------------+ Best States ------------- Heat Dissipation 50 Energy Generation 18 Energy Capacity 250 Matter Stores 500 Matter Capacity 500 Sight Range 16 Terrain Scan Range 16 Terrain Scan Density 10 Armor Coverage 300 Evasion (%) 55 Recoil Reduction 2 Item Schematics ----------------- None Robot Schematics ------------------ G-34 Mercenary | -10/Materials | Hacked Fabricated ------------ Nothing Alien Tech Used ----------------- None Achievements -------------- None Challenges ------------ None Game ------ Seed SignalSpacefoldKatana Manual? 0 Play Time 00:20:01 Cumulative 435.8 hours Start 2021.11.03 @ 12:18:03 End 2021.11.03 @ 12:36:03 Sessions 1 Manual Loads 0 Difficulty Rogue Special Mode None Game No. 433 Rogue 433 Adventurer 0 Explorer 0 Win Type - Total 8 Types 7/0/0/1/0/0/0/0/0 Lore% 80 Gallery% 92 Achievement% 69 Wizard Run 0 Options --------- ASCII 0 Keyboard 0 Movement Mouse Keybinds 1 Fullscreen 2 Font 24/Smallcaps Map View 76x50 Tactical HUD 1 Map Filters NONE Filters NONE Steam 1 RUN: d76b1b18-549f-426c-b8e6-ef355fb97fc8